Workbook

Sheet Začíname
B1: INFORMÁCIE O TEJTO ŠABLÓNE
B2: Pomocou analýza ziskovosti zákazníkov môžete sledovať aktivita zákazníkov, náklady na predaj a iné náklady.
B3: Do tabuliek zadajte údaje ako názov spoločnosti a dátum.
B4: Hodnoty v bunkách so vzorcami a tabuľka Súhrnné metriky sa vypočítavajú automaticky a graf sa aktualizuje.
B5: Poznámka:
B6: V hárku ZISKOVOSŤ ZÁKAZNÍKOV sú v stĺpci A uvedené ďalšie pokyny. Tento text je zámerne skrytý. Ak chcete text odstrániť, vyberte stĺpec A a potom stlačte kláves DELETE. Ak chcete text zobraziť, vyberte stĺpec A a potom zmeňte farbu písma.
B7: Ak chcete získať ďalšie informácie o tabuľkách v hárku, v tabuľke stlačte kláves SHIFT a potom kláves F10, vyberte možnosť TABUĽKA a potom vyberte položku ALTERNATÍVNY TEXT.

Sheet Ziskovosť zákazníkov
A1: V hárku môžete vytvoriť analýza ziskovosti zákazníkov. V bunkách v tomto stĺpci na nachádzajú užitočné pokyny na používanie tohto hárka. Začnite stlačením šípky nadol.
A2: Do bunky napravo zadajte názov spoločnosti. | B2: Názov spoločnosti
A3: V bunke napravo sa nachádza nadpis tohto hárka. | B3: Analýza ziskovosti zákazníkov
A4: Do bunky napravo zadajte dátum. | B4: Dátum
A5: V bunke napravo je uvedený tip. | B5: Sivé bunky sa vypočítajú automaticky. Netreba do nich nič zadávať.
A6: Do tabuľky Aktivita zákazníkov začínajúcej v bunke napravo zadajte podrobnosti. Ďalší pokyn sa nachádza v bunke A12. | B6: Aktivita zákazníkov: | C6: Názov segmentu 1 | D6: Názov segmentu 2 | E6: Názov segmentu 3 | F6: Celkom
B7: Počet aktívnych zákazníkov – na začiatku obdobia | C7: 5 | D7: 8 | E7: 8 | F7: =SUM(C7:E7) -> 21
B8: Počet nových zákazníkov | C8: 2 | D8: 4 | E8: 4 | F8: =SUM(C8:E8) -> 10
B9: Počet zákazníkov, o ktorých sme prišli | C9: -1 | D9: -2 | E9: -2 | F9: =SUM(C9:E9) -> -5
B10: Počet aktívnych zákazníkov – na konci obdobia | C10: =SUBTOTAL(109,AktivitaZákazníkov[Názov segmentu 1]) -> 6 | D10: =SUBTOTAL(109,AktivitaZákazníkov[Názov segmentu 2]) -> 10 | E10: =SUBTOTAL(109,AktivitaZákazníkov[Názov segmentu 3]) -> 10 | F10: =SUBTOTAL(109,AktivitaZákazníkov[Celkom]) -> 26
A12: Do tabuľky Analýza ziskovosti začínajúcej v bunke napravo zadajte podrobnosti. Ďalší pokyn sa nachádza v bunke A16. | B12: Analýza ziskovosti: | C12: Názov segmentu 1 | D12: Názov segmentu 2 | E12: Názov segmentu 3 | F12: Celkom
B13: Výnosy na segment | C13: 1,500,000.00 € | D13: 1,800,000.00 € | E13: 2,500,000.00 € | F13: =SUM(AnalýzaZiskovosti[[#This Row],[Názov segmentu 1]:[Názov segmentu 3]]) -> 5,800,000.00 €
B14: Váha | C14: =+C13/$F$13 -> 26% | D14: =+D13/$F$13 -> 31% | E14: =+E13/$F$13 -> 43% | F14: =SUM(AnalýzaZiskovosti[[#This Row],[Názov segmentu 1]:[Názov segmentu 3]]) -> 100%
A16: Do tabuľky Náklady na predaj začínajúcej v bunke napravo zadajte podrobnosti. Ďalší pokyn sa nachádza v bunke A23. | B16: Náklady na predaj: | C16: Názov segmentu 1 | D16: Názov segmentu 2 | E16: Názov segmentu 3 | F16: Celkom
B17: Náklady na prebiehajúcu službu a podporu | C17: 1,000,000.00 € | D17: 1,400,000.00 € | E17: 1,400,000.00 € | F17: =SUM(C17:E17) -> 3,800,000.00 €
B18: Ďalšie priame náklady na zákazníkov | C18: 200,000.00 € | D18: 100,000.00 € | E18: 100,000.00 € | F18: =SUM(C18:E18) -> 400,000.00 €
B19: Celkové náklady na predaj | C19: =SUM(C17:C18) -> 1,200,000.00 € | D19: =SUM(D17:D18) -> 1,500,000.00 € | E19: =SUM(E17:E18) -> 1,500,000.00 € | F19: =SUM(F17:F18) -> 4,200,000.00 €
B20: Hrubá marža | C20: =+C13-C19 -> 300,000.00 € | D20: =+D13-D19 -> 300,000.00 € | E20: =+E13-E19 -> 1,000,000.00 € | F20: =+F13-F19 -> 1,600,000.00 €
B21: Váha | C21: =MAX(0, MIN(1,C20/$F$20)) -> 19% | D21: =MAX(0, MIN(1,D20/$F$20)) -> 19% | E21: =MAX(0, MIN(1,E20/$F$20)) -> 63% | F21: =SUM(C21:E21) -> 100%
A23: Do tabuľky Iné náklady začínajúcej v bunke napravo zadajte podrobnosti. Ďalší pokyn sa nachádza v bunke A31. | B23: Iné náklady: | C23: Názov segmentu 1 | D23: Názov segmentu 2 | E23: Názov segmentu 3 | F23: Celkom
B24: Získavanie zákazníkov | C24: 105,000.00 € | D24: 120,000.00 € | E24: 235,000.00 € | F24: =SUM(InéNáklady[[#This Row],[Názov segmentu 1]:[Názov segmentu 3]]) -> 460,000.00 €
B25: Zákaznícky marketing | C25: 150,000.00 € | D25: 125,000.00 € | E25: 275,000.00 € | F25: =SUM(C25:E25) -> 550,000.00 €
B26: Strata zákazníkov | C26: 80,000.00 € | D26: 190,000.00 € | E26: 140,000.00 € | F26: =SUM(C26:E26) -> 410,000.00 €
B27: Celkové iné náklady na zákazníkov | C27: =SUM(C24:C26) -> 335,000.00 € | D27: =SUM(D24:D26) -> 435,000.00 € | E27: =SUM(E24:E26) -> 650,000.00 € | F27: =SUM(F24:F26) -> 1,420,000.00 €
B28: Zisk zo zákazníka podľa segmentu | C28: =+C20-C27 -> -35,000.00 € | D28: =+D20-D27 -> -135,000.00 € | E28: =+E20-E27 -> 350,000.00 € | F28: =SUM(C28:E28) -> 180,000.00 €
B29: Váha | C29: =MAX(0,MIN(1, C28/$F$28)) -> 0% | D29: =MAX(0,MIN(1, D28/$F$28)) -> 0% | E29: =MAX(0,MIN(1, E28/$F$28)) -> 100% | F29: =SUM(C29:E29) -> 100%
A31: Tabuľka Súhrnné metriky začínajúca v bunke napravo sa aktualizuje automaticky. Ďalší pokyn sa nachádza v bunke A37. | B31: Súhrnné metriky: | C31: Názov segmentu 1 | D31: Názov segmentu 2 | E31: Názov segmentu 3 | F31: Trend
B32: Priemerné náklady na nového zákazníka | C32: =+C24/C8 -> 52,500.00 € | D32: =+D24/D8 -> 30,000.00 € | E32: =+E24/E8 -> 58,750.00 €
B33: Priemerné náklady na zákazníka, o ktorého sme prišli | C33: =-C26/C9 -> 80,000.00 € | D33: =-D26/D9 -> 95,000.00 € | E33: =-E26/E9 -> 70,000.00 €
B34: Priemerné marketingové náklady na aktívneho zákazníka | C34: =+C26/AktivitaZákazníkov[[#Totals],[Názov segmentu 1]] -> 13,333.33 € | D34: =+D25/AktivitaZákazníkov[[#Totals],[Názov segmentu 2]] -> 12,500.00 € | E34: =+E25/AktivitaZákazníkov[[#Totals],[Názov segmentu 3]] -> 27,500.00 €
B35: Priemerný zisk (strata) na zákazníka | C35: =+C29/AktivitaZákazníkov[[#Totals],[Názov segmentu 1]] -> 0.00 € | D35: =+D28/AktivitaZákazníkov[[#Totals],[Názov segmentu 2]] -> -13,500.00 € | E35: =+E28/AktivitaZákazníkov[[#Totals],[Názov segmentu 3]] -> 35,000.00 €
A37: Skupinový stĺpcový graf, ktorý zobrazuje súhrnné metriky podľa segmentu zákazníkov sa nachádza v bunke vpravo. | B37: Skupinový stĺpcový graf, ktorý zobrazuje súhrnné metriky podľa segmentu zákazníkov, sa nachádza v tejto bunke.
